Cogmind - Beta 14 @@@ ROGUE MODE // 2024.12.08 @ 08:47:43 Player: DURANDAL Result: Destroyed by D-53 Grenadier with Mini Grenade Launcher Performance ------------- Evolutions (1) 500 Regions Visited (3) 600 Robots Destroyed (32) 160 Value Destroyed (635) 635 Prototype IDs (0) 0 Alien Tech Used (0) 0 Bonus (0) 0 TOTAL SCORE: 1895 Bonus ------- None Cogmind --------- Core Integrity 0/400 Matter 300/300 Energy 100/100 System Corruption 0% Temperature Cool (0) Movement Core (1350) Ox26 Location -9/Mines Parts ------- > --- POWER (1) -------- (None) > --- PROPULSION (3) --- (None) > --- UTILITY (3) ------ Huge Storage Unit > --- WEAPON (2) ------- (None) > --- INVENTORY (25) --- Ion Engine Small Storage Unit High-capacity Matter Pod (200) Visual Processing Unit Visual Processing Unit Core Shielding Hardened Medium Armor Plating Hacking Suite Hacking Suite Light Assault Rifle Light Assault Rifle Light Assault Rifle Mining Laser Peak State ------------ > --- POWER ------------ Ion Engine > --- PROPULSION ------- Light Treads Light Treads Light Treads > --- UTILITY ---------- Huge Storage Unit Targeting Computer Hardened Medium Armor Plating > --- WEAPON ----------- Light Assault Rifle Light Assault Rifle > --- INVENTORY -------- Ion Engine Light Treads Small Storage Unit High-capacity Matter Pod Visual Processing Unit Visual Processing Unit Core Shielding Hardened Medium Armor Plating Hacking Suite Hacking Suite Light Assault Rifle Light Assault Rifle Mining Laser [Rating: 13] Favorites ----------- Power Light Ion Engine Engine Light Ion Engine Propulsion Light Treads Treads Light Treads Utility Huge Storage Unit Device Terrain Scanner Storage Huge Storage Unit Processor Targeting Computer Protection Hardened Medium Armor Plating Weapon Assault Rifle Ballistic Gun Assault Rifle Build | -11 -10 -9 -9 ------- Run | Yrd Mat Mat Min Slots Evolved 2 | . . 2 . Power . | . . . . Propulsion 1 | . . 1 . Utility 1 | . . 1 . Weapon . | . . . . Parts Attached 22 | 6 3 13 . Power 3 | 1 . 2 . Engine 3 | 1 . 2 . Core . | . . . . Reactor . | . . . . Propulsion 7 | 2 . 5 . Treads 7 | 2 . 5 . Leg . | . . . . Wheel . | . . . . Hover . | . . . . Flight . | . . . . Utility 5 | 1 1 3 . Device 1 | . 1 . . Storage 2 | 1 . 1 . Processor 1 | . . 1 . Hackware . | . . . . Protection 1 | . . 1 . Artifact . | . . . . Weapon 7 | 2 2 3 . Energy Gun . | . . . . Energy Cannon . | . . . . Ballistic Gun 7 | 2 2 3 . Ballistic Cannon . | . . . . Launcher . | . . . . Special Weapon . | . . . . Impact Weapon . | . . . . Slashing Weapon . | . . . . Piercing Weapon . | . . . . Special Melee Weapon . | . . . . Unidentified Prototypes . | . . . . Parts Lost 15 | . . 8 7 Power 2 | . . 1 1 Propulsion 6 | . . 3 3 Utility 3 | . . 2 1 Weapon 4 | . . 2 2 Highest Loss Streak 5 | . . 5 4 To Critical Strikes . | . . . . Average Slot Usage (%) 84 | . 98 90 44 Engine 10 | . 14 8 10 Treads 24 | . 28 29 . Device 7 | . 13 8 . Storage 11 | . 14 11 11 Processor 5 | . . 8 . Protection 1 | . . 2 . Ballistic Gun 22 | . 27 21 21 Peak Build Rating 13 | 6 7 13 12 Average Rating 8 | 4 6 9 6 On Entrance 6 | . 6 7 12 Naked Turns . | . . . . Heaviest Build 95 | 11 12 95 87 Greatest Support 60 | 40 40 60 3 Greatest Overweight (x) 28 | . . 2 28 Average Overweight (x) 1 | . . 1 27 Largest Inventory Capacity 25 | 8 8 25 25 Average Capacity 21 | 6 8 24 25 Most Carried 17 | 4 3 17 13 Average Carried 8 | . 1 9 13 Final Capacity 25 | 8 8 25 25 Final Carried 13 | . 3 13 13 Class Distribution -------------------- 82% | Mutant 17% | Scavenger-Mutant Dominant Class ---------------- Mutant | -10/Materials Mutant | -9/Materials Mutant | -9/Mines Resources | -11 -10 -9 -9 ----------- Run | Yrd Mat Mat Min Matter Collected 1028 | 175 107 730 16 Remotely . | . . . . Salvage Created 929 | . 97 765 67 Parts 77 | . 5 62 10 Haulers Intercepted 1 | . . 1 . Recyclers Shooed 1 | . . 1 . Parts Field Recycled . | . . . . Retrieved Matter . | . . . . Parts Self-Destructed . | . . . . Prevented . | . . . . Kills | -11 -10 -9 -9 ------- Run | Yrd Mat Mat Min Combat Hostiles Destroyed 23 | . 3 16 4 Guns 23 | . 3 16 4 Classes Destroyed 9 | . 3 6 . Worker 5 | . . 5 . Hauler 1 | . . 1 . Recycler 1 | . . 1 . Operator 1 | . 1 . . Watcher 1 | . . 1 . Swarmer 10 | . 2 4 4 Grunt 10 | . 1 9 . Duelist 1 | . . 1 . Sentry 2 | . . 2 . Best Kill Streak 4 | . 2 4 4 Combat Bots Only 4 | . 2 4 4 Max Kills in Single Turn 2 | . 1 2 2 Gunslinging 1 | . . . 1 Exploded . | . . . . Melee . | . . . . Uniques/NPCs Destroyed . | . . . . Combat | -11 -10 -9 -9 -------- Run | Yrd Mat Mat Min Hostile Shots Fired 236 | . 13 172 51 Missed 63 | . 3 48 12 Damage Taken 2012 | . 86 1397 529 Core 438 | . 21 170 247 Absorbed by Shields . | . . . . Core Remaining (%) 95 | 100 91 . . Volleys Fired 131 | . 16 102 13 Largest 2 | . 2 2 2 Hottest 40 | . 40 40 40 Shots Fired 251 | . 32 193 26 Gun 251 | . 32 193 26 Cannon . | . . . . Launcher . | . . . . Special . | . . . . Kinetic 251 | . 32 193 26 Thermal . | . . . . Explosive . | . . . . Electromagnetic . | . . . . Robot Hit Streak 12 | . 6 12 5 Robot Miss Streak 6 | . 3 5 6 Penetration Max . | . . . . Secondary Targets 5 | . 1 3 1 Max Gunslinging Chain 1 | . 1 1 1 Shots Hit Robots 147 | . 17 118 12 Core Hits 56 | . 7 44 5 Critical Kills . | . . . . Critical Parts Destroyed . | . . . . Critical Strikes . | . . . . Melee Attacks . | . . . . Impact . | . . . . Slashing . | . . . . Piercing . | . . . . Sneak Attacks . | . . . . Combat Hostiles . | . . . . Follow-up Attacks . | . . . . Damage Inflicted 1646 | . 186 1343 117 Guns 1553 | . 186 1250 117 Cannons . | . . . . Explosions . | . . . . Melee . | . . . . Ramming 93 | . . 93 . Kinetic 1553 | . 186 1250 117 Thermal . | . . . . Explosive . | . . . . Electromagnetic . | . . . . Impact . | . . . . Slashing . | . . . . Piercing . | . . . . Highest Corruption . | . . . . Average Corruption . | . . . . Corruption Purged . | . . . . Corruption Blocked . | . . . . Overload Shots . | . . . . Overflow Damage 1 | . . 1 . Projectiles . | . . . . Explosions . | . . . . Melee 1 | . . 1 . Knockbacks 2 | . . 2 . Impact 2 | . . 2 . Kinetic . | . . . . Secondary . | . . . . Self-Inflicted Damage . | . . . . Shots . | . . . . Rammed 11 | . . 11 . Targets Rammed 16 | . . 16 . Kicked . | . . . . Crushed 5 | . . 5 . Highest Temperature 48 | . 6 48 8 Average Temperature 12 | . 6 13 4 Received Heat Transfer 387 | . 12 375 . Siege Activations . | . . . . Robots Corrupted . | . . . . Combat Hostiles . | . . . . Parts Fried 2 | . . 2 . Impact Corruptions 1 | . . 1 . Robots Melted . | . . . . Combat Hostiles . | . . . . Parts Melted . | . . . . Heat Transferred . | . . . . Parts Sabotaged . | . . . . Parts Stolen . | . . . . Parts Stripped . | . . . . Power Chain Reactions . | . . . . Alert | -11 -10 -9 -9 ------- Run | Yrd Mat Mat Min Peak Influence 313 | . 100 313 129 Initial 79 | . . . 79 Average 109 | . 34 134 124 Maximum Alert Level 1 | . . 1 . Low Security (%) 81 | 100 100 69 100 Level 1 18 | . . 30 . Level 2 . | . . . . Level 3 . | . . . . Level 4 . | . . . . Level 5 . | . . . . High Security . | . . . . Max Security . | . . . . Squads Dispatched 5 | . 1 4 . Investigation . | . . . . Extermination . | . . . . Reinforcement 5 | . 1 4 . Assault . | . . . . Garrison . | . . . . Intercept . | . . . . Searches Triggered . | . . . . Construction Impeded 1 | . . 1 . Haulers Reinforced . | . . . . Active Scanning Responses . | . . . . Cargo Convoy Interrupts . | . . . . Stealth | -11 -10 -9 -9 --------- Run | Yrd Mat Mat Min Distress Signals . | . . . . Communications Jammed . | . . . . Distress Signals . | . . . . Times Spotted 43 | . 8 30 5 Peak Tracking Total 5 | . 3 5 4 Tactical Retreats 3 | . . 3 . Traps | -11 -10 -9 -9 ------- Run | Yrd Mat Mat Min Traps Triggered 1 | . 1 . . Indirectly . | . . . . Trap Hack Attempts . | . . . . Triggered . | . . . . Disarmed 1 | . 1 . . Reprogrammed . | . . . . Reused . | . . . . Traps Extracted . | . . . . Installed . | . . . . Triggered . | . . . . Machines | -11 -10 -9 -9 ---------- Run | Yrd Mat Mat Min Machines Disabled 1 | . . 1 . Max in Single Turn 1 | . . 1 . Machines Repaired . | . . . . Machines Dismantled . | . . . . Machines Sabotaged . | . . . . Overloaded Fab Kills . | . . . . Hacking | -11 -10 -9 -9 --------- Run | Yrd Mat Mat Min Machines Accessed 6 | . 2 4 . Terminals 5 | . 2 3 . Fabricators . | . . . . Repair Stations . | . . . . Recycling Units 1 | . . 1 . Scanalyzers . | . . . . Garrison Access . | . . . . Total Hacks 12 | . 4 8 . Successful 5 | . 3 2 . Failed 7 | . 1 6 . Catastrophic . | . . . . Database Lockouts . | . . . . Manual . | . . . . Terminals 10 | . 4 6 . Fabricators . | . . . . Repair Stations . | . . . . Recycling Units 2 | . . 2 . Scanalyzers . | . . . . Garrison Access . | . . . . Terminal Hacks 4 | . 3 1 . Branch Access Points 1 | . . 1 . Emergency Access Points 1 | . 1 . . Disarm Traps 1 | . 1 . . Registered Components 1 | . 1 . . Fabricator Hacks . | . . . . Repair Station Hacks . | . . . . Recycling Unit Hacks 1 | . . 1 . Retrieve Components 1 | . . 1 . Scanalyzer . | . . . . Garrison Access Hacks . | . . . . Unauthorized Hacks . | . . . . Terminals . | . . . . Fabricators . | . . . . Repair Stations . | . . . . Recycling Units . | . . . . Scanalyzers . | . . . . Garrison Access . | . . . . Data Cores Recovered . | . . . . Used . | . . . . Hacking Detections 3 | . 1 2 . Full Trace Events . | . . . . Feedback Events . | . . . . Feedback Blocked . | . . . . Robot Schematics Acquired . | . . . . Robots Built . | . . . . Authchips . | . . . . Time . | . . . . Total Robot Build Rating . | . . . . Part Schematics Acquired . | . . . . Parts Built . | . . . . Authchips . | . . . . Time . | . . . . Total Part Build Rating . | . . . . Parts Repaired . | . . . . Time . | . . . . Parts Recycled . | . . . . Recycled Matter . | . . . . Retrieved Matter . | . . . . Retrieved Components 10 | . . 10 . Parts Scanalyzed . | . . . . Part Schematics Acquired . | . . . . Parts Damaged . | . . . . Bothacking | -11 -10 -9 -9 ------------ Run | Yrd Mat Mat Min Used RIF Installer . | . . . . Robots Hacked . | . . . . Non-combat . | . . . . Combat . | . . . . Robot Hacks Applied . | . . . . Relay Couplers Released . | . . . . Fabnet Peak Effective % . | . . . . Robots Rewired . | . . . . Allies Hacked . | . . . . Hacks Repelled . | . . . . Allies | -11 -10 -9 -9 -------- Run | Yrd Mat Mat Min Total Allies . | . . . . Largest Group . | . . . . Highest-Rated Group . | . . . . Highest-Rated Ally . | . . . . Total Orders . | . . . . Ally Attacks . | . . . . Total Damage . | . . . . Kills . | . . . . Allies Corrupted . | . . . . Allies Melted . | . . . . Intel | -11 -10 -9 -9 ------- Run | Yrd Mat Mat Min Robot Analysis Total . | . . . . Derelict Logs Recovered . | . . . . Drone Launches . | . . . . Drone Recoveries . | . . . . Exploration | -11 -10 -9 -9 ------------- Run | Yrd Mat Mat Min Turns Passed 2160 | 77 407 1333 343 Spaces Moved 631 | 44 219 346 22 Core 26 | 4 . . 22 Treads 605 | 40 219 346 . Legs . | . . . . Wheels . | . . . . Hover . | . . . . Flight . | . . . . Fastest Speed 50 | 50 160 160 1350 Average Speed 254 | 150 160 252 1445 Slowest Speed 1450 | 160 160 320 1450 Overloaded Moves . | . . . . Propulsion Burnouts . | . . . . Robots Hopped . | . . . . Cave-ins Triggered . | . . . . Exploration Rate (%) 23 | 4 41 41 7 Regions Visited 3 Branch Regions 1 Pre-discovered Areas . | . . . . Known Exits Taken 1 | . . 1 . Unknown Exits Taken 2 | 1 1 . . Scrap Searched . | . . . . Spaces Dug . | . . . . Terrain Destroyed . | . . . . Melee . | . . . . Projectile . | . . . . AOE . | . . . . Terrain Rammed . | . . . . Walls Destroyed . | . . . . Machines Disabled . | . . . . Actions | -11 -10 -9 -9 --------- Run | Yrd Mat Mat Min Total 945 | 55 247 608 35 Wait 114 | . 4 110 . Move 628 | 43 218 345 22 Hop . | . . . . Pick Up 32 | 6 6 20 . Fast Attach . | . . . . Attach 21 | 6 3 12 . Detach 2 | . . 2 . Swap 1 | . . 1 . Drop . | . . . . Fire 131 | . 16 102 13 Melee . | . . . . Ram . | . . . . Kick . | . . . . Crush 16 | . . 16 . Escape Stasis . | . . . . Rewire . | . . . . Trap . | . . . . Miscellaneous . | . . . . Route ------- -11/Scrapyard -10/Materials (discovered 2 exits: *Mat / [*Min]) -9/Materials (discovered 2 exits: *Min x2) -9/Mines History --------- Turn | Location | Event 12 | -11/Scrapyard | Discovered new exit (range 16) 78 | -11/Scrapyard | Entered Materials 200 | -10/Materials | Discovered new exit (range 16) 230 | -10/Materials | Discovered new exit (range 7) 308 | -10/Materials | Build established: Mutant 485 | -10/Materials | Entered another Materials area 485 | -9/Materials | Evolved 2 slots: Propulsion x1, Utility x1 936 | -9/Materials | Identified exit to Mines 1503 | -9/Materials | Lost 5 parts (2n1u2w) 1756 | -9/Materials | Build established: Scavenger-Mutant 1818 | -9/Materials | Entered Mines 1828 | -9/Mines | Core integrity fell below 50% 1873 | -9/Mines | Lost 4 parts (3n1u) 2071 | -9/Mines | Assembled infested the area 2136 | -9/Mines | Build established: Mutant 2158 | -9/Mines | Core integrity fell below 20% 2161 | -9/Mines | Destroyed by D-53 Grenadier with Mini Grenade Launcher Last Messages --------------- 01819_ Lgt. Treads destroyed. 01824_ S-10 Pest destroyed. 01833_ Lgt. Treads destroyed. 01837_ S-10 Pest destroyed. 01837_ Switching to secondary target: S-10 Pest. 01837_ S-10 Pest destroyed. 01842_ Hrd. Medium Armor Plating destroyed. 01850_ S-10 Pest destroyed. 01881_ Acquired 12 matter. 01883_ R-06 Scavenger collects Flight Unit. 01887_ R-06 Scavenger collects Lgt. Ion Engine. 01891_ R-06 Scavenger collects Flight Unit. 01910_ Acquired 4 matter. 02071_ ALERT: Infestation in the mines, dispatching Demolisher response squad. 02145_ Lgt. Assault Rifle destroyed. 02146_ The unstable cave ceiling collapses. 02151_ Ion Engine destroyed. 02151_ Lgt. Assault Rifle destroyed. 02155_ The unstable cave ceiling collapses. Map ----- +----------------------------------------------------+ | ???????????????????????????????????? | | ???????????????????????????????????? | | ???????????????????????????????????? | | ???????????????????????????????????? | | ???????????????????????????????????? | | ???????????????????????????????????? | | ???????????????????????????????????? | | ???????????????????????????????????? | | ???????????????????????????????????? | | ???????????????????????????????????? | | ???????????????????????????????????? | | ???????????????????????????????????? | | ???????????????????????????????????? | | ?#######???????????????????????????? | | ?# #???????????????????????????? | | ?# #???????????????????????????? | | ?# """ #?###???????????????????????? | | ?# """ #?# ????????#??????????????? | | ?# """[#?# #??????? ???????????????? | | ?#=%* %#?# #????## ????????????????? | | ?# [% ### ###? ?????????????????? | | ?# [ ## ## #??????????????????? | | ?# [ # #??????????????????? | | ?# ##??????????????????? | | ?# #??????????????????? | | ?###### #@ ##??????????????????? | | ??????# #??????????????????? | | ??????# ##??????????????????? | | ??????# #???????????????????? | | ??????## #???????????????????? | | ???????## ##???????????????????? | | ???????? # #????????????????????? | | ??????? # d ##????????????????????? | | ??????? #?????????????????????? | | ?????? ?# ##?????????????????????? | | ????? ?###???????????????????????? | | ????? ????????????????????????????? | | ???? ????????????????????????????? | | ???? ?????????????????????????????? | | ????#??????????????????????????????? | | ???????????????????????????????????? | | ???????????????????????????????????? | | ???????????????????????????????????? | | ???????????????????????????????????? | | ???????????????????????????????????? | | ???????????????????????????????????? | | ???????????????????????????????????? | | ???????????????????????????????????? | | ???????????????????????????????????? | | ???????????????????????????????????? | +----------------------------------------------------+ Best States ------------- Heat Dissipation 28 Energy Generation 10 Energy Capacity 250 Matter Stores 300 Matter Capacity 300 Sight Range 16 Terrain Scan Range 14 Terrain Scan Density 10 Armor Coverage 225 Evasion (%) 40 Targeting Accuracy 5 Recoil Reduction 3 Item Schematics ----------------- None Robot Schematics ------------------ None Fabricated ------------ Nothing Alien Tech Used ----------------- None Achievements -------------- None Challenges ------------ None Game ------ Seed WeldingDiametricReplicator Manual? 0 Play Time 00:17:24 Cumulative 20.8 hours Start 2024.12.08 @ 08:28:29 End 2024.12.08 @ 08:47:43 Sessions 1 Manual Loads 0 Difficulty Rogue Special Mode None Game No. 37 Rogue 37 Adventurer 0 Explorer 0 Win Type - Total 0 Types 0/0/0/0/0/0/0/0/0 Lore% 13 Gallery% 16 Achievement% 17 Wizard Run 0 Options --------- Layout 1 ASCII 0 Keyboard 0 Movement Numpad Keybinds 0 Fullscreen 1 Font 24/Smallcaps Map View 50x35 Zoom Use 0% Tactical HUD 1 Map Filters NONE Filters NONE Steam 1 RUN: 01141616-a5c8-4b93-a2d5-afb518ce19b5